fUST/lending_fUST_20250114
["ID","MTS","AMOUNT","RATE_DAILY","PERIOD"]
[348799582,1736788247074,-500.0,0.00021327,3]
[348799585,1736788247084,-1386.85,0.00021327,3]
[348799587,1736788247093,-1482.9,0.00021327,3]
[348799589,1736788247103,-506.02,0.00021327,3]
[348799590,1736788247115,-500.0,0.00021327,3]
[348799592,1736788247124,-1299.73,0.00021327,3]
[348799595,1736788247134,-500.0,0.00021327,3]
[348799597,1736788247143,-500.0,0.00021328,3]
[348799598,1736788247152,-500.0,0.00021328,3]
[348799601,1736788247162,-370.36,0.00021328,3]
[348799603,1736788247171,-207.9178126,0.00021328,3]
[348799604,1736788247180,-500.0,0.00021328,3]
[348799607,1736788247190,-500.0,0.00021328,3]
[348799609,1736788247200,-500.0,0.00021328,3]
[348799611,1736788247209,-500.0,0.00021328,3]
[348799613,1736788247218,-500.0,0.00021328,3]
[348799615,1736788247227,-500.0,0.00021328,3]
[348799617,1736788247236,-500.0,0.00021328,3]
[348799619,1736788247246,-500.0,0.00021328,3]
[348799621,1736788247255,-500.0,0.00021328,3]
[348799623,1736788247264,-500.0,0.00021328,3]
[348799625,1736788247273,-500.0,0.00021328,3]
[348799627,1736788247283,-500.0,0.00021328,3]
[348799628,1736788247292,-500.0,0.00021328,3]
[348799631,1736788247302,-500.0,0.00021328,3]
[348799633,1736788247311,-500.0,0.00021328,3]
[348799635,1736788247320,-500.0,0.00021328,3]
[348799636,1736788247329,-500.0,0.00021328,3]
[348799639,1736788247339,-515.2948383,0.00021328,3]
[348799641,1736788247348,-500.0,0.00021328,3]
[348799643,1736788247359,-500.0,0.00021328,3]
[348799645,1736788247369,-500.0,0.00021328,3]
[348799647,1736788247379,-500.0,0.00021328,3]
[348799649,1736788247388,-500.0,0.00021328,3]
[348799651,1736788247397,-500.0,0.00021328,3]
[348799653,1736788247407,-500.0,0.00021328,3]
[348799655,1736788247416,-500.0,0.00021328,3]
[348799657,1736788247425,-500.0,0.00021328,3]
[348799659,1736788247434,-500.0,0.00021328,3]
[348799661,1736788247444,-500.0,0.00021328,3]
[348799663,1736788247453,-500.0,0.00021328,3]
[348799665,1736788247464,-500.0,0.00021328,3]
[348799667,1736788247473,-500.0,0.00021328,3]
[348799669,1736788247482,-500.0,0.00021328,3]
[348799671,1736788247493,-500.0,0.00021328,3]
[348799673,1736788247502,-500.0,0.00021328,3]
[348799675,1736788247511,-500.0,0.00021328,3]
[348799677,1736788247521,-500.0,0.00021328,3]
[348799679,1736788247531,-500.0,0.00021328,3]
[348799681,1736788247540,-500.0,0.00021328,3]
[348799683,1736788247550,-437.77463676,0.00021328,3]
[348799685,1736788247559,-500.0,0.00021328,3]
[348799687,1736788247568,-500.0,0.00021328,3]
[348799689,1736788247578,-500.0,0.00021328,3]
[348799691,1736788247587,-500.0,0.00021328,3]
[348799693,1736788247596,-500.0,0.00021328,3]
[348799695,1736788247606,-586.77,0.00021328,3]
[348799697,1736788247616,-500.0,0.00021328,3]
[348799699,1736788247625,-1157.83,0.00021328,3]
[348799701,1736788247635,-500.0,0.00021328,3]
[348799703,1736788247644,-500.0,0.00021328,3]
[348799705,1736788247653,-500.0,0.00021328,3]
[348799707,1736788247663,-500.0,0.00021328,3]
[348799709,1736788247672,-500.0,0.00021328,3]
[348799711,1736788247682,-500.0,0.00021328,3]
[348799713,1736788247691,-500.0,0.00021328,3]
[348799715,1736788247701,-500.0,0.00021328,3]
[348799717,1736788247711,-500.0,0.00021328,3]
[348799719,1736788247720,-500.0,0.00021328,3]
[348799721,1736788247729,-500.0,0.00021328,3]
[348799723,1736788247739,-500.0,0.00021328,3]
[348799725,1736788247749,-613.15,0.00021328,3]
[348799727,1736788247758,-500.0,0.00021328,3]
[348799729,1736788247767,-500.0,0.00021328,3]
[348799731,1736788247777,-500.0,0.00021328,3]
[348799733,1736788247786,-500.0,0.00021328,3]
[348799735,1736788247796,-500.0,0.00021328,3]
[348799737,1736788247806,-500.0,0.00021328,3]
[348799739,1736788247815,-500.0,0.00021328,3]
[348799741,1736788247824,-500.0,0.00021328,3]
[348799743,1736788247834,-500.0,0.00021328,3]
[348799745,1736788247843,-500.0,0.00021328,3]
[348799747,1736788247853,-550.66,0.00021328,3]
[348799749,1736788247864,-500.0,0.00021328,3]
[348799751,1736788247874,-500.0,0.00021328,3]
[348799753,1736788247884,-500.0,0.00021328,3]
[348799755,1736788247894,-500.0,0.00021328,3]
[348799757,1736788247903,-500.0,0.00021328,3]
[348799771,1736788248023,-500.0,0.00021328,3]
[348799773,1736788248034,-500.0,0.00021328,3]
[348799775,1736788248044,-500.0,0.00021328,3]
[348799777,1736788248054,-500.0,0.00021328,3]
[348799779,1736788248063,-500.0,0.00021328,3]
[348799781,1736788248073,-500.0,0.00021328,3]
[348799783,1736788248083,-500.0,0.00021328,3]
[348799785,1736788248093,-500.0,0.00021328,3]
[348799787,1736788248103,-500.0,0.00021328,3]
[348799789,1736788248115,-500.0,0.00021328,3]
[348799791,1736788248125,-500.0,0.00021328,3]
[348799793,1736788248135,-500.0,0.00021328,3]
[348799795,1736788248145,-500.0,0.00021328,3]
[348799797,1736788248156,-307.53106215,0.00021328,3]
[348799799,1736788248166,-500.0,0.00021328,3]
[348799801,1736788248176,-500.0,0.00021328,3]
[348799803,1736788248186,-500.0,0.00021328,3]
[348799805,1736788248196,-500.0,0.00021328,3]
[348799807,1736788248206,-500.0,0.00021328,3]
[348799809,1736788248216,-636.30412198,0.00021328,3]
[348799811,1736788248226,-500.0,0.00021328,3]
[348799814,1736788248236,-500.0,0.00021328,3]
[348799816,1736788248247,-500.0,0.00021328,3]
[348799818,1736788248257,-506.12213312,0.00021328,3]
[348799820,1736788248268,-500.0,0.00021328,3]
[348799822,1736788248277,-500.0,0.00021328,3]
[348799824,1736788248288,-514.19243343,0.00021328,3]
[348799826,1736788248298,-500.0,0.00021329,3]
[348799828,1736788248309,-500.0,0.00021329,3]
[348799830,1736788248319,-500.0,0.00021329,3]
[348799832,1736788248329,-500.0,0.00021329,3]
[348799834,1736788248339,-500.0,0.00021329,3]
[348799836,1736788248350,-500.0,0.00021329,3]
[348799838,1736788248361,-500.0,0.00021329,3]
[348799840,1736788248371,-500.0,0.00021329,3]
[348799842,1736788248382,-500.0,0.00021329,3]
[348799844,1736788248392,-500.0,0.00021329,3]
[348799846,1736788248402,-500.0,0.00021329,3]
[348799848,1736788248412,-500.0,0.00021329,3]
[348799850,1736788248422,-500.0,0.00021329,3]
[348799852,1736788248432,-500.0,0.00021329,3]
[348799854,1736788248442,-500.0,0.00021329,3]
[348799856,1736788248452,-500.0,0.00021329,3]
[348799858,1736788248462,-500.0,0.00021329,3]
[348799859,1736788248471,-14349.17,0.00021329,3]
[348799861,1736788248482,-500.0,0.00021329,3]
[348799863,1736788248491,-500.0,0.00021329,3]
[348799865,1736788248501,-2020.13,0.00021329,3]
[348799867,1736788248511,-285.84625237,0.00021329,3]
[348799869,1736788248521,-500.0,0.00021329,3]
[348799872,1736788248531,-500.0,0.00021329,3]
[348799873,1736788248540,-565.32,0.00021329,3]
[348799876,1736788248550,-500.0,0.00021329,3]
[348799878,1736788248561,-500.0,0.00021329,3]
[348799880,1736788248572,-500.0,0.00021329,3]
[348799882,1736788248582,-500.0,0.00021329,3]
[348799884,1736788248592,-500.0,0.00021329,3]
[348799886,1736788248602,-500.0,0.0002133,2]
[348799888,1736788248613,-500.0,0.0002133,3]
[348799890,1736788248623,-500.0,0.0002133,3]
[348799892,1736788248633,-500.0,0.0002133,3]
[348799894,1736788248643,-183.38506214,0.0002133,3]
[348799896,1736788248653,-500.0,0.0002133,3]
[348799898,1736788248662,-500.0,0.0002133,3]
[348799900,1736788248673,-640.90221808,0.0002133,3]
[348799902,1736788248682,-538.46418997,0.0002133,3]
[348799904,1736788248692,-223.27536869,0.0002133,3]
[348799906,1736788248701,-500.0,0.0002133,3]
[348799907,1736788248710,-279.04,0.0002133,3]
[348799909,1736788248720,-500.0,0.0002133,3]
[348799911,1736788248730,-500.0,0.0002133,3]
[348799913,1736788248739,-500.0,0.0002133,3]
[348799915,1736788248748,-500.0,0.0002133,3]
[348799917,1736788248758,-500.0,0.0002133,3]
[348799919,1736788248767,-500.0,0.0002133,3]
[348799921,1736788248777,-500.0,0.0002133,3]
[348799924,1736788248786,-4244.95,0.0002133,3]
[348799926,1736788248796,-500.0,0.00021331,3]
[348799927,1736788248805,-500.0,0.00021331,3]
[348799930,1736788248815,-500.0,0.00021331,3]
[348799932,1736788248824,-514.33416895,0.00021332,3]
[348799934,1736788248834,-2222.94,0.00021368,3]
[348799935,1736788248843,-2059.78,0.00021368,3]
[348799938,1736788248853,-151.0,0.000215,3]
[348799940,1736788248864,-500.0,0.00021564,2]
[348799942,1736788248874,-500.0,0.00021564,2]
[348799943,1736788248884,-500.0,0.00021564,2]
[348799945,1736788248894,-500.31177201,0.00021564,2]
[348799947,1736788248903,-500.0,0.00021564,2]
[348799949,1736788248913,-9930.67,0.00021601,2]
[348799951,1736788248924,-2143.71,0.00021601,3]
[348799953,1736788248934,-500.0,0.00021601,3]
[348799955,1736788248944,-1386.85,0.00021601,3]
[348799957,1736788248953,-1482.9,0.00021601,3]
[348799959,1736788248963,-506.02,0.00021601,3]
[348799961,1736788248973,-500.0,0.00021601,3]
[348799963,1736788248983,-1299.73,0.00021601,3]
[348799965,1736788248993,-500.0,0.00021601,3]
[348799967,1736788249003,-530.85,0.00021602,3]
[348799968,1736788249013,-500.0,0.00021602,3]
[348799970,1736788249023,-500.0,0.00021602,3]
[348799972,1736788249033,-231.28910299,0.00021602,3]
[348799974,1736788249043,-500.0,0.00021602,3]
[348799976,1736788249052,-500.0,0.00021602,3]
[348799978,1736788249062,-500.0,0.00021602,3]
[348799980,1736788249072,-500.0,0.00021602,3]
[348799982,1736788249082,-500.0,0.00021602,3]
[348799984,1736788249092,-500.0,0.00021602,3]
[348799986,1736788249102,-500.0,0.00021602,3]
[348799988,1736788249115,-500.0,0.00021602,3]
[348799990,1736788249126,-500.0,0.00021602,3]
[348799992,1736788249137,-500.0,0.00021602,3]
[348799994,1736788249147,-500.0,0.00021602,3]
[348799996,1736788249157,-500.0,0.00021602,3]
[348799998,1736788249167,-530.32049551,0.00021602,3]
[348800000,1736788249177,-500.0,0.00021602,3]
[348800002,1736788249188,-500.0,0.00021602,3]
[348800004,1736788249199,-500.0,0.00021602,3]
[348800006,1736788249210,-500.0,0.00021602,3]
[348800008,1736788249220,-500.0,0.00021602,3]
[348800011,1736788249231,-500.0,0.00021602,3]
[348800012,1736788249242,-500.0,0.00021602,3]
[348800014,1736788249251,-500.0,0.00021602,3]
[348800016,1736788249261,-500.0,0.00021602,3]
[348800018,1736788249271,-500.0,0.00021602,3]
[348800020,1736788249281,-500.0,0.00021602,3]
[348800022,1736788249291,-500.0,0.00021602,3]
[348800024,1736788249301,-500.0,0.00021602,3]
[348800026,1736788249311,-500.0,0.00021602,3]
[348800028,1736788249321,-500.0,0.00021602,3]
[348800030,1736788249331,-500.0,0.00021602,3]
[348800032,1736788249342,-500.0,0.00021602,3]
[348800034,1736788249352,-500.0,0.00021602,3]
[348800036,1736788249362,-586.77,0.00021602,3]
[348800038,1736788249372,-500.0,0.00021602,3]
[348800040,1736788249383,-1157.83,0.00021602,3]
[348800042,1736788249393,-500.0,0.00021602,3]
[348800044,1736788249403,-500.0,0.00021602,3]
[348800046,1736788249413,-500.0,0.00021602,3]
[348800048,1736788249423,-500.0,0.00021602,3]
[348800050,1736788249433,-500.0,0.00021602,3]
[348800052,1736788249442,-500.0,0.00021602,3]
[348800054,1736788249452,-500.0,0.00021602,3]
[348800056,1736788249462,-500.0,0.00021602,3]
[348800058,1736788249471,-500.0,0.00021602,3]
[348800060,1736788249480,-500.0,0.00021602,3]
[348800062,1736788249490,-613.15,0.00021602,3]
[348800064,1736788249500,-500.0,0.00021602,3]
[348800066,1736788249510,-500.0,0.00021602,3]
[348800068,1736788249519,-500.0,0.00021602,3]
[348800070,1736788249531,-500.0,0.00021602,3]
[348800072,1736788249540,-500.0,0.00021602,3]
[348800074,1736788249550,-500.0,0.00021602,3]
[348800076,1736788249559,-500.0,0.00021602,3]
[348800078,1736788249569,-500.0,0.00021602,3]
[348800080,1736788249579,-500.0,0.00021602,3]
[348800082,1736788249588,-500.0,0.00021602,3]
[348800084,1736788249598,-550.66,0.00021602,3]
[348800086,1736788249608,-500.0,0.00021602,3]
[348800088,1736788249619,-501.95413865,0.00021602,3]
[348800090,1736788249629,-517.46983912,0.00021602,3]
[348800092,1736788249639,-500.0,0.00021602,3]
[348800094,1736788249648,-500.0,0.00021602,3]
[348800096,1736788249657,-500.0,0.00021602,3]
[348800098,1736788249667,-500.0,0.00021602,3]
[348800100,1736788249676,-500.0,0.00021602,3]
[348800102,1736788249686,-500.0,0.00021602,3]
[348800104,1736788249695,-500.0,0.00021602,3]
[348800106,1736788249704,-500.0,0.00021602,3]
[348800108,1736788249714,-500.0,0.00021602,3]
[348800110,1736788249724,-500.0,0.00021602,3]
[348800112,1736788249733,-500.0,0.00021602,3]
[348800114,1736788249743,-500.0,0.00021602,3]
[348800116,1736788249752,-553.7396496,0.00021602,3]
[348800118,1736788249762,-500.0,0.00021602,3]
[348800120,1736788249772,-500.0,0.00021602,3]
[348800122,1736788249782,-594.38,0.00021602,3]
[348800124,1736788249791,-504.83556762,0.00021602,3]
[348800126,1736788249800,-441.58304375,0.00021602,3]
[348800128,1736788249809,-500.0,0.00021602,3]
[348800130,1736788249819,-500.0,0.00021602,3]
[348800131,1736788249828,-500.0,0.00021602,3]
[348800133,1736788249837,-500.0,0.00021602,3]
[348800135,1736788249846,-500.0,0.00021603,3]
[348800137,1736788249855,-500.0,0.00021603,3]
[348800139,1736788249866,-500.0,0.00021603,3]
[348800141,1736788249875,-500.0,0.00021603,3]
[348800143,1736788249885,-500.0,0.00021603,3]
[348800145,1736788249895,-500.0,0.00021603,3]
[348800147,1736788249904,-500.0,0.00021603,3]
[348800149,1736788249917,-500.0,0.00021603,3]
[348800151,1736788249926,-500.0,0.00021603,3]
[348800153,1736788249936,-500.0,0.00021603,3]
[348800155,1736788249945,-500.0,0.00021603,3]
[348800157,1736788249954,-500.0,0.00021603,3]
[348800159,1736788249964,-14349.17,0.00021603,3]
[348800161,1736788249974,-500.0,0.00021603,3]
[348800163,1736788249984,-500.0,0.00021603,3]
[348800165,1736788249993,-2020.13,0.00021603,3]
[348800166,1736788250003,-500.0,0.00021603,3]
[348800168,1736788250012,-500.0,0.00021603,3]
[348800170,1736788250022,-565.32,0.00021603,3]
[348800172,1736788250032,-500.0,0.00021603,3]
[348800174,1736788250042,-500.0,0.00021603,3]
[348800176,1736788250052,-500.0,0.00021603,3]
[348800178,1736788250061,-500.0,0.00021603,3]
[348800180,1736788250071,-500.0,0.00021603,3]
[348800182,1736788250081,-203.45,0.00021604,2]
[348800184,1736788250090,-500.0,0.00021604,3]
[348800186,1736788250100,-500.0,0.00021604,3]
[348800188,1736788250109,-500.0,0.00021604,3]
[348800190,1736788250120,-202.92,0.00021604,3]
[348800192,1736788250130,-500.0,0.00021604,3]
[348800194,1736788250140,-500.0,0.00021604,3]
[348800196,1736788250151,-294.62639875,0.00021604,3]
[348800198,1736788250161,-500.0,0.00021604,3]
[348800200,1736788250172,-4244.95,0.00021604,3]
[348800202,1736788250192,-3809.0,0.00021604,4]
[348800204,1736788250202,-276.70281334,0.00021605,3]
[348800206,1736788250212,-500.0,0.00021605,3]
[348800208,1736788250222,-500.0,0.00021605,3]
[348800210,1736788250231,-2222.94,0.00021642,3]
[348800212,1736788250241,-2059.78,0.00021642,3]
[348800214,1736788250251,-9930.67,0.00021875,2]
[348800216,1736788250263,-2143.71,0.00021875,3]
[348800218,1736788250273,-1386.85,0.00021875,3]
[348800219,1736788250282,-1482.9,0.00021875,3]
[348800232,1736788250398,-506.02,0.00021875,3]
[348800234,1736788250409,-500.0,0.00021875,3]
[348800236,1736788250418,-1299.73,0.00021875,3]
[348800238,1736788250428,-372.54,0.00021875,3]
[348800240,1736788250438,-500.0,0.00021876,3]
[348800242,1736788250448,-500.0,0.00021876,3]
[348800244,1736788250457,-510.15460416,0.00021876,3]
[348800246,1736788250467,-500.0,0.00021876,3]
[348800248,1736788250477,-500.0,0.00021876,3]
[348800250,1736788250486,-500.0,0.00021876,3]
[348800252,1736788250496,-500.0,0.00021876,3]
[348800254,1736788250506,-500.0,0.00021876,3]
[348800256,1736788250516,-500.0,0.00021876,3]
[348800257,1736788250525,-500.0,0.00021876,3]
[348800259,1736788250535,-500.0,0.00021876,3]
[348800260,1736788250545,-592.15,0.00021876,3]
[348800261,1736788250555,-500.0,0.00021876,3]
[348800262,1736788250565,-500.0,0.00021876,3]
[348800263,1736788250574,-500.0,0.00021876,3]
[348800264,1736788250584,-500.0,0.00021876,3]
[348800265,1736788250594,-500.0,0.00021876,3]
[348800266,1736788250604,-500.0,0.00021876,3]
[348800267,1736788250617,-500.0,0.00021876,3]
[348800268,1736788250630,-586.77,0.00021876,3]
[348800269,1736788250640,-500.0,0.00021876,3]
[348800270,1736788250649,-1157.83,0.00021876,3]
[348800271,1736788250659,-500.0,0.00021876,3]
[348800272,1736788250668,-500.0,0.00021876,3]
[348800273,1736788250678,-500.0,0.00021876,3]
[348800274,1736788250687,-500.0,0.00021876,3]
[348800275,1736788250697,-500.0,0.00021876,3]
[348800276,1736788250707,-500.0,0.00021876,3]
[348800278,1736788250716,-500.0,0.00021876,3]
[348800280,1736788250726,-613.15,0.00021876,3]
[348800282,1736788250736,-500.0,0.00021876,3]
[348800284,1736788250747,-500.0,0.00021876,3]
[348800286,1736788250757,-500.0,0.00021876,3]
[348800288,1736788250767,-500.0,0.00021876,3]
[348800290,1736788250777,-550.66,0.00021876,3]
[348800292,1736788250788,-500.0,0.00021876,3]
[348800294,1736788250798,-500.0,0.00021876,3]
[348800296,1736788250809,-397.88460314,0.00021876,3]
[348800298,1736788250819,-500.0,0.00021876,3]
[348800300,1736788250830,-500.0,0.00021876,3]
[348800302,1736788250840,-531.16971749,0.00021876,3]
[348800304,1736788250850,-500.0,0.00021876,3]
[348800306,1736788250860,-500.0,0.00021876,3]
[348800308,1736788250876,-500.0,0.00021876,3]
[348800311,1736788250886,-510.14224656,0.00021876,3]
[348800313,1736788250897,-500.0,0.00021876,3]
[348800315,1736788250906,-500.0,0.00021876,3]
[348800317,1736788250917,-500.0,0.00021877,3]
[348800318,1736788250930,-500.0,0.00021877,3]
[348800321,1736788250940,-543.76,0.00021877,3]
[348800322,1736788250950,-500.0,0.00021877,3]
[348800325,1736788250960,-500.0,0.00021877,3]
[348800327,1736788250969,-618.8,0.00021877,3]
[348800329,1736788250979,-500.0,0.00021877,3]
[348800331,1736788250988,-500.0,0.00021877,3]
[348800333,1736788250999,-500.0,0.00021877,3]
[348800334,1736788251008,-14349.17,0.00021877,3]
[348800337,1736788251019,-500.0,0.00021877,3]
[348800339,1736788251028,-2020.13,0.00021877,3]
[348800341,1736788251038,-500.0,0.00021877,3]
[348800343,1736788251047,-500.0,0.00021877,3]
[348800345,1736788251056,-565.32,0.00021877,3]
[348800347,1736788251066,-500.0,0.00021877,3]
[348800349,1736788251075,-500.0,0.00021877,3]
[348800351,1736788251084,-500.0,0.00021877,3]
[348800353,1736788251094,-500.0,0.00021877,3]
[348800355,1736788251104,-500.0,0.00021878,3]
[348800357,1736788251116,-500.0,0.00021878,3]
[348800359,1736788251125,-497.397,0.00021878,3]
[348800361,1736788251135,-500.0,0.00021878,3]
[348800363,1736788251144,-4244.95,0.00021878,3]
[348800365,1736788251154,-841.34349554,0.000219,2]
[348800367,1736788251164,-2222.94,0.00021916,3]
[348800369,1736788251173,-2059.78,0.00021916,3]
[348800371,1736788251183,-500.0,0.00021917,3]
[348800373,1736788251192,-500.0,0.00021917,3]
[348800375,1736788251204,-500.0,0.00021917,3]
[348800377,1736788251214,-500.49917011,0.00021917,3]
[348800379,1736788251224,-500.0,0.00021917,3]
[348800381,1736788251234,-500.0,0.00021917,3]
[348800383,1736788251243,-500.0,0.00021917,3]
[348800385,1736788251253,-500.0,0.00021917,3]
[348800387,1736788251263,-500.0,0.00021917,3]
[348800389,1736788251273,-500.0,0.00021917,3]
[348800391,1736788251282,-161.0,0.00022,2]
[348800393,1736788251292,-420.0,0.00022023,2]
[348800395,1736788251302,-1000.0,0.00022112,2]
[348800397,1736788251311,-472.4502812,0.00022112,2]
[348800399,1736788251321,-501.25475546,0.00022112,2]
[348800401,1736788251331,-500.82791859,0.00022112,2]
[348800403,1736788251340,-1500.0,0.00022122,2]
[348800405,1736788251350,-1500.0,0.00022122,2]
[348800407,1736788251360,-9930.67,0.00022149,2]
[348800409,1736788251372,-2143.71,0.00022149,3]
[348800411,1736788251381,-1386.85,0.00022149,3]
[348800414,1736788251391,-1482.9,0.00022149,3]
[348800416,1736788251400,-506.02,0.00022149,3]
[348800418,1736788251409,-500.0,0.00022149,3]
[348800420,1736788251419,-1299.73,0.00022149,3]
[348800422,1736788251428,-500.0,0.0002215,3]
[348800424,1736788251439,-500.0,0.0002215,3]
[348800426,1736788251449,-500.0,0.0002215,3]
[348800427,1736788251458,-500.0,0.0002215,3]
[348800428,1736788251467,-476.35,0.0002215,3]
[348800429,1736788251478,-500.0,0.0002215,3]
[348800430,1736788251488,-500.0,0.0002215,3]
[348800431,1736788251497,-500.0,0.0002215,3]
[348800432,1736788251507,-500.0,0.0002215,3]
[348800433,1736788251517,-500.0,0.0002215,3]
[348800434,1736788251526,-500.0,0.0002215,3]
[348800435,1736788251535,-500.0,0.0002215,3]
[348800436,1736788251545,-500.0,0.0002215,3]
[348800437,1736788251555,-500.0,0.0002215,3]
[348800438,1736788251564,-500.0,0.0002215,3]
[348800439,1736788251575,-500.0,0.0002215,3]
[348800440,1736788251585,-429.4,0.0002215,3]
[348800441,1736788251595,-586.77,0.0002215,3]
[348800442,1736788251604,-500.0,0.0002215,3]
[348800443,1736788251615,-1157.83,0.0002215,3]
[348800444,1736788251624,-500.0,0.0002215,3]
[348800445,1736788251634,-500.0,0.0002215,3]
[348800446,1736788251644,-500.0,0.0002215,3]
[348800447,1736788251654,-500.0,0.0002215,3]
[348800448,1736788251664,-500.0,0.0002215,3]
[348800449,1736788251674,-500.0,0.0002215,3]
[348800450,1736788251683,-500.0,0.0002215,3]
[348800451,1736788251694,-613.15,0.0002215,3]
[348800452,1736788251703,-500.0,0.0002215,3]
[348800453,1736788251713,-500.0,0.0002215,3]
[348800454,1736788251723,-500.0,0.0002215,3]
[348800455,1736788251733,-514.98862569,0.0002215,3]
[348800456,1736788251742,-550.66,0.0002215,3]
[348800457,1736788251753,-500.0,0.0002215,3]
[348800458,1736788251763,-500.0,0.0002215,3]
[348800459,1736788251772,-500.0,0.0002215,3]
[348800460,1736788251783,-500.0,0.0002215,3]
[348800461,1736788251795,-535.84,0.0002215,3]
[348800463,1736788251806,-177.8,0.0002215,3]
[348800465,1736788251816,-377.93379025,0.0002215,3]
[348800467,1736788251827,-570.67,0.0002215,3]
[348800469,1736788251837,-500.0,0.00022151,3]
[348800471,1736788251848,-195.72,0.00022151,3]
[348800473,1736788251858,-438.05,0.00022151,3]
[348800475,1736788251871,-500.0,0.00022151,3]
[348800477,1736788251882,-500.0,0.00022151,3]
[348800479,1736788251891,-388.49,0.00022151,3]
[348800481,1736788251900,-500.0,0.00022151,3]
[348800483,1736788251909,-14349.17,0.00022151,3]
[348800485,1736788251922,-500.0,0.00022151,3]
[348800487,1736788251932,-2020.13,0.00022151,3]
[348800489,1736788251941,-500.0,0.00022151,3]
[348800491,1736788251950,-500.0,0.00022151,3]
[348800493,1736788251960,-565.32,0.00022151,3]
[348800495,1736788251971,-500.0,0.00022151,3]
[348800497,1736788251981,-500.0,0.00022151,3]
[348800500,1736788251990,-500.0,0.00022151,3]
[348800502,1736788252001,-500.0,0.00022151,3]
[348800504,1736788252010,-500.0,0.00022152,3]
[348800506,1736788252019,-198.07737621,0.00022152,3]
[348800508,1736788252029,-500.0,0.00022152,3]
[348800510,1736788252039,-4244.95,0.00022152,3]
[348800512,1736788252048,-2222.94,0.0002219,3]
[348800514,1736788252057,-2059.78,0.0002219,3]
[348800516,1736788252067,-9930.67,0.00022423,2]
[348800518,1736788252076,-2143.71,0.00022423,3]
[348800520,1736788252086,-710.2091545,0.00022423,3]
[348800535,1736788252238,-676.6408455,0.00022423,3]
[348800536,1736788252248,-1482.9,0.00022423,3]
[348800538,1736788252258,-506.02,0.00022423,3]
[348800540,1736788252268,-269.32864635,0.00022423,3]
[348800543,1736788252280,-230.67135365,0.00022423,3]
[348800545,1736788252291,-1299.73,0.00022423,3]
[348800547,1736788252300,-500.0,0.00022424,3]
[348800549,1736788252311,-500.0,0.00022424,3]
[348800551,1736788252320,-500.0,0.00022424,3]
[348800553,1736788252330,-500.0,0.00022424,3]
[348800555,1736788252339,-500.0,0.00022424,3]
[348800569,1736788252463,-500.0,0.00022424,3]
[348800571,1736788252474,-350.25,0.00022424,3]
[348800573,1736788252485,-500.0,0.00022424,3]
[348800575,1736788252495,-500.0,0.00022424,3]